[Event "Early-Titled-Tuesday-Blitz-February-20-2024"]
[Site "Chess.com"]
[Date "2024.02.20"]
[Round "11"]
[White "FairChess_on_YouTube"]
[Black "Eagle_2019"]
[Result "1/2-1/2"]
[WhiteElo "3054"]
[BlackElo "2898"]
[TimeControl "180+1"]
[EndTime "10:09:33 PST"]
[Termination "Game drawn by repetition"]

1. d4 {[%clk 0:03:00.9]} 1... d5 {[%clk 0:02:57.4]} 2. c4 {[%clk 0:03:00.8]}
2... e6 {[%clk 0:02:57.3]} 3. Nf3 {[%clk 0:03:01]} 3... Nf6 {[%clk 0:02:56.4]}
4. Bg5 {[%clk 0:03:01.6]} 4... c6 {[%clk 0:02:53.9]} 5. Nbd2 {[%clk 0:02:58.6]}
5... Nbd7 {[%clk 0:02:53.8]} 6. e3 {[%clk 0:02:58.4]} 6... Be7 {[%clk
0:02:52.3]} 7. Bd3 {[%clk 0:02:58.3]} 7... O-O {[%clk 0:02:52.1]} 8. O-O {[%clk
0:02:58.5]} 8... c5 {[%clk 0:02:31]} 9. Rc1 {[%clk 0:02:51.2]} 9... b6 {[%clk
0:02:24.6]} 10. Ne5 {[%clk 0:02:43.1]} 10... Bb7 {[%clk 0:02:18.5]} 11. f4
{[%clk 0:02:24.7]} 11... cxd4 {[%clk 0:02:17.2]} 12. exd4 {[%clk 0:02:24.8]}
12... dxc4 {[%clk 0:02:17.4]} 13. Ndxc4 {[%clk 0:02:22.5]} 13... Rc8 {[%clk
0:02:11]} 14. Kh1 {[%clk 0:02:20.3]} 14... h6 {[%clk 0:02:01.9]} 15. Bh4 {[%clk
0:01:58.7]} 15... Nd5 {[%clk 0:02:01.2]} 16. Nd6 {[%clk 0:01:15]} 16... Rxc1
{[%clk 0:01:52.5]} 17. Qxc1 {[%clk 0:01:15.9]} 17... Ba8 {[%clk 0:01:17.5]} 18.
Ndxf7 {[%clk 0:00:45.6]} 18... Rxf7 {[%clk 0:01:14.9]} 19. Nxf7 {[%clk
0:00:44.6]} 19... Kxf7 {[%clk 0:01:15.8]} 20. Bg3 {[%clk 0:00:41.7]} 20... Bf6
{[%clk 0:01:08.7]} 21. f5 {[%clk 0:00:40.8]} 21... e5 {[%clk 0:01:08.7]} 22.
dxe5 {[%clk 0:00:31.2]} 22... Bxe5 {[%clk 0:00:59.9]} 23. Qe1 {[%clk 0:00:27.7]}
23... Qf6 {[%clk 0:00:43.5]} 24. Bc4 {[%clk 0:00:27.8]} 24... Kf8 {[%clk
0:00:37.4]} 25. Bb3 {[%clk 0:00:10.7]} 25... Qd6 {[%clk 0:00:18.1]} 26. Qf2
{[%clk 0:00:08.7]} 26... Bxg3 {[%clk 0:00:17.5]} 27. Qxg3 {[%clk 0:00:09.2]}
27... Qxg3 {[%clk 0:00:17.1]} 28. hxg3 {[%clk 0:00:10.1]} 28... N7f6 {[%clk
0:00:15.2]} 29. Rc1 {[%clk 0:00:09.3]} 29... Bb7 {[%clk 0:00:15.1]} 30. Bxd5
{[%clk 0:00:08.6]} 30... Nxd5 {[%clk 0:00:15.1]} 31. Kh2 {[%clk 0:00:08.2]}
31... Ke7 {[%clk 0:00:14.6]} 32. g4 {[%clk 0:00:08.6]} 32... Kd7 {[%clk
0:00:13.9]} 33. Kg3 {[%clk 0:00:08.1]} 33... Ne3 {[%clk 0:00:13.3]} 34. Re1
{[%clk 0:00:08.1]} 34... Nd5 {[%clk 0:00:11.2]} 35. Re6 {[%clk 0:00:07.8]} 35...
Nf6 {[%clk 0:00:11.2]} 36. Re1 {[%clk 0:00:04.5]} 36... Bd5 {[%clk 0:00:11.3]}
37. a3 {[%clk 0:00:04.4]} 37... Kd6 {[%clk 0:00:09.8]} 38. Re2 {[%clk 0:00:05]}
38... Kd7 {[%clk 0:00:09.2]} 39. Kf4 {[%clk 0:00:05.3]} 39... Bc4 {[%clk
0:00:05.2]} 40. Rc2 {[%clk 0:00:03.8]} 40... Bf7 {[%clk 0:00:04]} 41. g5 {[%clk
0:00:03.7]} 41... Nd5+ {[%clk 0:00:04.3]} 42. Ke5 {[%clk 0:00:03.5]} 42... hxg5
{[%clk 0:00:04.7]} 43. Rd2 {[%clk 0:00:03.8]} 43... Kc6 {[%clk 0:00:04.9]} 44.
Rc2+ {[%clk 0:00:04.3]} 44... Kd7 {[%clk 0:00:05.2]} 45. Rd2 {[%clk 0:00:04.8]}
45... Kc6 {[%clk 0:00:05.4]} 46. Rc2+ {[%clk 0:00:04]} 46... Kd7 {[%clk
0:00:05.5]} 1/2-1/2

[Event "Early-Titled-Tuesday-Blitz-February-20-2024"]
[Site "Chess.com"]
[Date "2024.02.20"]
[Round "11"]
[White "Mops_2004"]
[Black "kpio91"]
[Result "1-0"]
[WhiteElo "2767"]
[BlackElo "2876"]
[TimeControl "180+1"]
[EndTime "10:09:35 PST"]
[Termination "Mops_2004 won on time"]

1. g3 {[%clk 0:03:00.9]} 1... d5 {[%clk 0:02:56.6]} 2. Nf3 {[%clk 0:03:00.2]}
2... g6 {[%clk 0:02:53.8]} 3. Bg2 {[%clk 0:03:00.2]} 3... Bg7 {[%clk 0:02:53.9]}
4. d4 {[%clk 0:03:00.9]} 4... Nf6 {[%clk 0:02:54.2]} 5. O-O {[%clk 0:03:01.5]}
5... O-O {[%clk 0:02:54]} 6. c4 {[%clk 0:03:02.3]} 6... c6 {[%clk 0:02:53.9]} 7.
b3 {[%clk 0:03:02.5]} 7... Ne4 {[%clk 0:02:49.4]} 8. Bb2 {[%clk 0:03:02.6]} 8...
a5 {[%clk 0:02:49]} 9. Nc3 {[%clk 0:03:02.6]} 9... Bf5 {[%clk 0:02:41.8]} 10. e3
{[%clk 0:03:00]} 10... Nxc3 {[%clk 0:02:37.3]} 11. Bxc3 {[%clk 0:03:00.2]} 11...
Be4 {[%clk 0:02:38]} 12. Qe2 {[%clk 0:03:00]} 12... Nd7 {[%clk 0:02:37.3]} 13.
Rfc1 {[%clk 0:02:58.8]} 13... e6 {[%clk 0:02:34.4]} 14. Bf1 {[%clk 0:02:57.9]}
14... dxc4 {[%clk 0:02:08.6]} 15. bxc4 {[%clk 0:02:54.8]} 15... c5 {[%clk
0:02:09.1]} 16. Bg2 {[%clk 0:02:10.9]} 16... Rc8 {[%clk 0:02:03.7]} 17. Rd1
{[%clk 0:02:01.8]} 17... Qc7 {[%clk 0:01:55.6]} 18. Rac1 {[%clk 0:02:01.4]}
18... Rfd8 {[%clk 0:01:53]} 19. Qb2 {[%clk 0:01:49.2]} 19... b6 {[%clk
0:01:41.7]} 20. h4 {[%clk 0:01:14.2]} 20... Qb7 {[%clk 0:01:20.4]} 21. Ne1
{[%clk 0:01:09.3]} 21... Bxg2 {[%clk 0:01:19.2]} 22. Nxg2 {[%clk 0:01:10.2]}
22... cxd4 {[%clk 0:01:10.6]} 23. Bxd4 {[%clk 0:01:10.5]} 23... e5 {[%clk
0:00:55.2]} 24. Bc3 {[%clk 0:01:06.5]} 24... Rxc4 {[%clk 0:00:49.8]} 25. Bxa5
{[%clk 0:01:01.9]} 25... Rxc1 {[%clk 0:00:48.3]} 26. Rxc1 {[%clk 0:01:02.2]}
26... Ra8 {[%clk 0:00:40.8]} 27. Bb4 {[%clk 0:00:53.7]} 27... h5 {[%clk
0:00:33]} 28. a3 {[%clk 0:00:47.5]} 28... e4 {[%clk 0:00:24.7]} 29. Bc3 {[%clk
0:00:47.7]} 29... Bxc3 {[%clk 0:00:24.6]} 30. Qxc3 {[%clk 0:00:47.8]} 30... Nc5
{[%clk 0:00:24.2]} 31. Nf4 {[%clk 0:00:46.1]} 31... Rd8 {[%clk 0:00:24.2]} 32.
Qf6 {[%clk 0:00:40.4]} 32... Qc7 {[%clk 0:00:17.5]} 33. Rb1 {[%clk 0:00:30.2]}
33... Rd6 {[%clk 0:00:16.1]} 34. Qg5 {[%clk 0:00:27.4]} 34... Kh7 {[%clk
0:00:05.4]} 35. Nd5 {[%clk 0:00:24.1]} 35... Qc6 {[%clk 0:00:05.7]} 36. Nf4
{[%clk 0:00:18.1]} 36... Qd7 {[%clk 0:00:04.7]} 37. Kg2 {[%clk 0:00:16.2]} 37...
Rd2 {[%clk 0:00:04.5]} 38. Rxb6 {[%clk 0:00:12]} 38... Nd3 {[%clk 0:00:04.5]}
39. Nxd3 {[%clk 0:00:07.2]} 39... exd3 {[%clk 0:00:04.5]} 40. Rf6 {[%clk
0:00:04.9]} 40... Re2 {[%clk 0:00:04.1]} 41. Qf4 {[%clk 0:00:04]} 41... Kg8
{[%clk 0:00:03.1]} 42. Rd6 {[%clk 0:00:03.8]} 42... Qb7+ {[%clk 0:00:02.4]} 43.
Qf3 {[%clk 0:00:03.4]} 43... Qb5 {[%clk 0:00:01.4]} 44. Rd8+ {[%clk 0:00:03.3]}
44... Kg7 {[%clk 0:00:01.9]} 45. Rd6 {[%clk 0:00:03.5]} 45... Qe5 {[%clk
0:00:01.3]} 46. Rd5 {[%clk 0:00:03]} 46... Rb2 {[%clk 0:00:02.2]} 47. Rxe5
{[%clk 0:00:03.2]} 47... d2 {[%clk 0:00:02.6]} 48. Rd5 {[%clk 0:00:03.4]} 1-0

[Event "Early-Titled-Tuesday-Blitz-February-20-2024"]
[Site "Chess.com"]
[Date "2024.02.20"]
[Round "11"]
[White "Ati1517"]
[Black "ural58"]
[Result "1-0"]
[WhiteElo "2275"]
[BlackElo "2488"]
[TimeControl "180+1"]
[EndTime "10:09:35 PST"]
[Termination "Ati1517 won on time"]

1. e4 {[%clk 0:03:00.9]} 1... d5 {[%clk 0:02:59.9]} 2. exd5 {[%clk 0:02:58.3]}
2... Qxd5 {[%clk 0:02:54.9]} 3. Nc3 {[%clk 0:02:58.6]} 3... Qa5 {[%clk
0:02:53.7]} 4. d4 {[%clk 0:02:58.9]} 4... Nf6 {[%clk 0:02:45.4]} 5. Bd2 {[%clk
0:02:52.9]} 5... Bg4 {[%clk 0:02:33.1]} 6. Be2 {[%clk 0:02:51]} 6... Bxe2 {[%clk
0:02:31.6]} 7. Qxe2 {[%clk 0:02:48.7]} 7... Nc6 {[%clk 0:02:31.2]} 8. Nf3 {[%clk
0:02:40.8]} 8... O-O-O {[%clk 0:02:30.1]} 9. Be3 {[%clk 0:02:12.8]} 9... e5
{[%clk 0:02:22.3]} 10. dxe5 {[%clk 0:02:07.4]} 10... Ne4 {[%clk 0:02:15.9]} 11.
O-O {[%clk 0:02:03.4]} 11... Nxc3 {[%clk 0:02:10.3]} 12. bxc3 {[%clk 0:02:04.3]}
12... Qxc3 {[%clk 0:02:09.2]} 13. Qb5 {[%clk 0:01:57.8]} 13... a6 {[%clk
0:01:57.6]} 14. Qa4 {[%clk 0:01:30.5]} 14... Qb4 {[%clk 0:01:51.4]} 15. Qb3
{[%clk 0:01:24.6]} 15... Qxb3 {[%clk 0:01:48.6]} 16. axb3 {[%clk 0:01:24.9]}
16... Bb4 {[%clk 0:01:38.9]} 17. Rad1 {[%clk 0:01:02.1]} 17... Rhe8 {[%clk
0:01:29.6]} 18. Rxd8+ {[%clk 0:00:49.7]} 18... Kxd8 {[%clk 0:01:26.4]} 19. Rd1+
{[%clk 0:00:48.1]} 19... Kc8 {[%clk 0:01:04]} 20. Bf4 {[%clk 0:00:43.3]} 20...
h6 {[%clk 0:00:53.9]} 21. h4 {[%clk 0:00:24.3]} 21... Bc3 {[%clk 0:00:45.1]} 22.
Rd3 {[%clk 0:00:21]} 22... Bxe5 {[%clk 0:00:43.7]} 23. Nxe5 {[%clk 0:00:21]}
23... Nxe5 {[%clk 0:00:43.7]} 24. Re3 {[%clk 0:00:21.7]} 24... f6 {[%clk
0:00:43.8]} 25. Bxe5 {[%clk 0:00:20.7]} 25... Rxe5 {[%clk 0:00:43.5]} 26. Rg3
{[%clk 0:00:21.3]} 26... Re7 {[%clk 0:00:41.3]} 27. Rg6 {[%clk 0:00:21.2]} 27...
b5 {[%clk 0:00:41.1]} 28. g4 {[%clk 0:00:21.7]} 28... a5 {[%clk 0:00:40.6]} 29.
g5 {[%clk 0:00:22.3]} 29... hxg5 {[%clk 0:00:30.6]} 30. hxg5 {[%clk 0:00:23.2]}
30... Rf7 {[%clk 0:00:18.2]} 31. gxf6 {[%clk 0:00:22.9]} 31... gxf6 {[%clk
0:00:08.8]} 32. Rh6 {[%clk 0:00:23]} 32... Kb7 {[%clk 0:00:09.1]} 33. Rh4 {[%clk
0:00:19.7]} 33... Kb6 {[%clk 0:00:09.2]} 34. Kf1 {[%clk 0:00:16.9]} 34... c5
{[%clk 0:00:07.1]} 35. Ke2 {[%clk 0:00:17.8]} 35... Ra7 {[%clk 0:00:06.1]} 36.
Rh6 {[%clk 0:00:16.7]} 36... a4 {[%clk 0:00:06.4]} 37. Rxf6+ {[%clk 0:00:16.8]}
37... Kc7 {[%clk 0:00:04.5]} 38. bxa4 {[%clk 0:00:15]} 38... bxa4 {[%clk
0:00:04.1]} 39. Rf7+ {[%clk 0:00:15.2]} 39... Kb6 {[%clk 0:00:04.4]} 40. Rxa7
{[%clk 0:00:14.8]} 40... Kxa7 {[%clk 0:00:04.7]} 41. Kd3 {[%clk 0:00:15.4]}
41... a3 {[%clk 0:00:04.6]} 42. Kc3 {[%clk 0:00:15.2]} 42... c4 {[%clk
0:00:05.3]} 43. f4 {[%clk 0:00:14.4]} 43... Kb6 {[%clk 0:00:05.7]} 44. f5 {[%clk
0:00:14]} 44... Kc6 {[%clk 0:00:06.3]} 45. f6 {[%clk 0:00:12.7]} 45... Kd6
{[%clk 0:00:06.2]} 46. Kd4 {[%clk 0:00:12.9]} 46... Ke6 {[%clk 0:00:03.7]} 47.
Kxc4 {[%clk 0:00:12.1]} 47... a2 {[%clk 0:00:03.8]} 48. Kb3 {[%clk 0:00:12.4]}
48... a1=Q {[%clk 0:00:04]} 49. c4 {[%clk 0:00:13.3]} 49... Qb2+ {[%clk
0:00:04]} 50. Kxb2 {[%clk 0:00:12.8]} 1-0

[Event "Early-Titled-Tuesday-Blitz-February-20-2024"]
[Site "Chess.com"]
[Date "2024.02.20"]
[Round "11"]
[White "David_George21"]
[Black "malakismayil"]
[Result "1-0"]
[WhiteElo "2365"]
[BlackElo "2518"]
[TimeControl "180+1"]
[EndTime "10:09:38 PST"]
[Termination "David_George21 won on time"]

1. e4 {[%clk 0:02:45.5]} 1... e5 {[%clk 0:02:58.6]} 2. Nf3 {[%clk 0:02:43.9]}
2... Nc6 {[%clk 0:02:59]} 3. Bb5 {[%clk 0:02:39.9]} 3... a6 {[%clk 0:02:59.2]}
4. Ba4 {[%clk 0:02:36.9]} 4... Nf6 {[%clk 0:02:58.6]} 5. O-O {[%clk 0:02:36.1]}
5... b5 {[%clk 0:02:58.8]} 6. Bb3 {[%clk 0:02:35.8]} 6... Be7 {[%clk 0:02:59.7]}
7. Re1 {[%clk 0:02:34.5]} 7... O-O {[%clk 0:02:59.6]} 8. a4 {[%clk 0:02:35.1]}
8... b4 {[%clk 0:02:59.9]} 9. d3 {[%clk 0:02:32.9]} 9... h6 {[%clk 0:02:59.6]}
10. h3 {[%clk 0:02:32]} 10... d6 {[%clk 0:02:59.6]} 11. Nbd2 {[%clk 0:02:30.3]}
11... Na5 {[%clk 0:02:58.3]} 12. Ba2 {[%clk 0:02:30]} 12... c5 {[%clk
0:02:58.5]} 13. Nf1 {[%clk 0:02:29.7]} 13... Re8 {[%clk 0:02:54.5]} 14. Ne3
{[%clk 0:02:29.3]} 14... Bf8 {[%clk 0:02:53.9]} 15. Nd5 {[%clk 0:02:29]} 15...
Be6 {[%clk 0:02:49]} 16. c3 {[%clk 0:02:25.2]} 16... Bxd5 {[%clk 0:02:28]} 17.
exd5 {[%clk 0:02:23.7]} 17... Rb8 {[%clk 0:02:21]} 18. c4 {[%clk 0:02:13.2]}
18... g6 {[%clk 0:02:07.3]} 19. b3 {[%clk 0:02:12.1]} 19... Bg7 {[%clk
0:02:06.8]} 20. Bb2 {[%clk 0:02:12.5]} 20... Nh5 {[%clk 0:02:06]} 21. Bb1 {[%clk
0:02:05.8]} 21... f5 {[%clk 0:02:00.3]} 22. g3 {[%clk 0:01:57.8]} 22... Kh7
{[%clk 0:01:21.2]} 23. Bc2 {[%clk 0:01:53.3]} 23... Rf8 {[%clk 0:01:15.8]} 24.
Qe2 {[%clk 0:01:47.4]} 24... Qd7 {[%clk 0:01:15.5]} 25. Kg2 {[%clk 0:01:44.8]}
25... Rbe8 {[%clk 0:01:13.4]} 26. Nh4 {[%clk 0:01:30.3]} 26... f4 {[%clk
0:01:01]} 27. d4 {[%clk 0:01:04.6]} 27... e4 {[%clk 0:00:14.4]} 28. Bxe4 {[%clk
0:00:59.1]} 28... Rxe4 {[%clk 0:00:15]} 29. Qxe4 {[%clk 0:00:58]} 29... Qf7
{[%clk 0:00:15.6]} 30. Qe6 {[%clk 0:00:40.6]} 30... fxg3 {[%clk 0:00:10.2]} 31.
Qxf7 {[%clk 0:00:40.2]} 31... Rxf7 {[%clk 0:00:10.9]} 32. fxg3 {[%clk 0:00:40]}
32... Nxb3 {[%clk 0:00:08.6]} 33. Rad1 {[%clk 0:00:36.7]} 33... Bxd4 {[%clk
0:00:03.5]} 34. Bxd4 {[%clk 0:00:36.5]} 34... Nxd4 {[%clk 0:00:04.4]} 35. Rf1
{[%clk 0:00:28.9]} 35... Rxf1 {[%clk 0:00:03]} 36. Rxf1 {[%clk 0:00:28.5]} 36...
Kg7 {[%clk 0:00:03.8]} 37. Nf3 {[%clk 0:00:25.4]} 37... Nf5 {[%clk 0:00:02.8]}
38. Re1 {[%clk 0:00:19.6]} 38... Nf6 {[%clk 0:00:02.7]} 39. Re6 {[%clk
0:00:19.2]} 39... Kf7 {[%clk 0:00:02.6]} 40. Nd2 {[%clk 0:00:18.5]} 40... Nd4
{[%clk 0:00:01.9]} 41. Re3 {[%clk 0:00:18]} 41... Nd7 {[%clk 0:00:01.9]} 42. Nf3
{[%clk 0:00:16.6]} 42... Nf6 {[%clk 0:00:02]} 43. Nxd4 {[%clk 0:00:14.9]} 43...
cxd4 {[%clk 0:00:02.9]} 44. Rd3 {[%clk 0:00:15.4]} 44... Ne4 {[%clk 0:00:03.5]}
45. Rxd4 {[%clk 0:00:15.3]} 45... Nc5 {[%clk 0:00:04.2]} 46. Rd2 {[%clk
0:00:14.7]} 46... Nxa4 {[%clk 0:00:04]} 47. Ra2 {[%clk 0:00:14.8]} 47... Nc5
{[%clk 0:00:04.2]} 48. Rxa6 {[%clk 0:00:14.6]} 48... Ke7 {[%clk 0:00:04.9]} 49.
Rb6 {[%clk 0:00:14.4]} 49... b3 {[%clk 0:00:05.2]} 50. Kf3 {[%clk 0:00:14.3]}
50... Kd7 {[%clk 0:00:01.3]} 51. g4 {[%clk 0:00:13.8]} 51... Kc7 {[%clk
0:00:01.9]} 52. Rb5 {[%clk 0:00:13.9]} 52... Kd7 {[%clk 0:00:01.2]} 53. Kf4
{[%clk 0:00:14.2]} 1-0

[Event "Early-Titled-Tuesday-Blitz-February-20-2024"]
[Site "Chess.com"]
[Date "2024.02.20"]
[Round "11"]
[White "Hovik_Hayrapetyan"]
[Black "Skatchkov_V"]
[Result "0-1"]
[WhiteElo "2890"]
[BlackElo "2654"]
[TimeControl "180+1"]
[EndTime "10:09:41 PST"]
[Termination "Skatchkov_V won by resignation"]

1. d4 {[%clk 0:03:00.9]} 1... Nf6 {[%clk 0:02:58.9]} 2. c4 {[%clk 0:03:00.7]}
2... e6 {[%clk 0:02:58.9]} 3. Nc3 {[%clk 0:03:01.1]} 3... Bb4 {[%clk 0:02:58.8]}
4. Nf3 {[%clk 0:03:01.6]} 4... O-O {[%clk 0:02:58.4]} 5. Bg5 {[%clk 0:03:01.4]}
5... h6 {[%clk 0:02:45.7]} 6. Bh4 {[%clk 0:03:01.3]} 6... c5 {[%clk 0:02:41.1]}
7. Rc1 {[%clk 0:03:00.9]} 7... d5 {[%clk 0:02:39.2]} 8. cxd5 {[%clk 0:02:53.1]}
8... exd5 {[%clk 0:02:27.8]} 9. e3 {[%clk 0:02:48.8]} 9... c4 {[%clk 0:02:19.7]}
10. Be2 {[%clk 0:02:44.8]} 10... Nc6 {[%clk 0:02:18.3]} 11. O-O {[%clk
0:02:43.6]} 11... Be6 {[%clk 0:02:12.4]} 12. Ne5 {[%clk 0:02:40.2]} 12... Be7
{[%clk 0:01:52.5]} 13. Nxc6 {[%clk 0:02:36.6]} 13... bxc6 {[%clk 0:01:52.5]} 14.
Bg3 {[%clk 0:02:11]} 14... Bf5 {[%clk 0:01:31.1]} 15. b3 {[%clk 0:01:55.6]}
15... Ba3 {[%clk 0:01:27]} 16. bxc4 {[%clk 0:01:55.9]} 16... Bxc1 {[%clk
0:01:26.6]} 17. Qxc1 {[%clk 0:01:56.8]} 17... Ne4 {[%clk 0:01:22.4]} 18. Nxe4
{[%clk 0:01:55.9]} 18... Bxe4 {[%clk 0:01:23.3]} 19. c5 {[%clk 0:01:54.1]} 19...
Re8 {[%clk 0:00:56.7]} 20. Ba6 {[%clk 0:01:33.9]} 20... Qa5 {[%clk 0:00:39.2]}
21. Bb7 {[%clk 0:01:31.7]} 21... Rab8 {[%clk 0:00:37.8]} 22. Bxc6 {[%clk
0:01:19.9]} 22... Rb1 {[%clk 0:00:37]} 23. Qxb1 {[%clk 0:01:20.1]} 23... Bxb1
{[%clk 0:00:37.6]} 24. Rxb1 {[%clk 0:00:50.8]} 24... Qxa2 {[%clk 0:00:36.2]} 25.
Rf1 {[%clk 0:00:48.8]} 25... Re7 {[%clk 0:00:22.3]} 26. h4 {[%clk 0:00:30.2]}
26... a5 {[%clk 0:00:20.7]} 27. Bd6 {[%clk 0:00:11.1]} 27... Re6 {[%clk
0:00:21]} 28. Bd7 {[%clk 0:00:10.5]} 28... Rxd6 {[%clk 0:00:21.4]} 29. cxd6
{[%clk 0:00:11.4]} 29... Qa3 {[%clk 0:00:22.3]} 30. Bg4 {[%clk 0:00:06.8]} 30...
Qxd6 {[%clk 0:00:22.7]} 31. Ra1 {[%clk 0:00:07]} 31... Qb4 {[%clk 0:00:21.9]}
32. Bf3 {[%clk 0:00:07.6]} 32... Qb5 {[%clk 0:00:19.9]} 33. g4 {[%clk
0:00:04.8]} 33... g6 {[%clk 0:00:19.4]} 34. Kg2 {[%clk 0:00:05.1]} 34... Kf8
{[%clk 0:00:19.9]} 35. Rc1 {[%clk 0:00:05]} 35... a4 {[%clk 0:00:19.5]} 36. Rc5
{[%clk 0:00:04.8]} 36... Qb2 {[%clk 0:00:19.5]} 37. Bxd5 {[%clk 0:00:04.7]}
37... a3 {[%clk 0:00:19.8]} 38. Ra5 {[%clk 0:00:03.2]} 38... Qb4 {[%clk
0:00:16.2]} 39. Ra8+ {[%clk 0:00:03.2]} 39... Ke7 {[%clk 0:00:16.7]} 40. Ra7+
{[%clk 0:00:04.1]} 40... Kd6 {[%clk 0:00:17.1]} 41. Bxf7 {[%clk 0:00:04.5]}
41... g5 {[%clk 0:00:16.8]} 42. h5 {[%clk 0:00:04.5]} 42... Qb6 {[%clk
0:00:15.7]} 43. Rxa3 {[%clk 0:00:04]} 43... Qb7+ {[%clk 0:00:16.2]} 44. Kg3
{[%clk 0:00:03.7]} 44... Qxf7 {[%clk 0:00:16.7]} 45. Ra5 {[%clk 0:00:03.9]}
45... Qc7 {[%clk 0:00:16]} 46. Ra6+ {[%clk 0:00:04]} 46... Kd5+ {[%clk
0:00:16.1]} 47. Kg2 {[%clk 0:00:04.5]} 47... Qg7 {[%clk 0:00:13.3]} 48. Rg6
{[%clk 0:00:04.7]} 48... Qd7 {[%clk 0:00:13.3]} 49. f3 {[%clk 0:00:04.3]} 49...
Qe7 {[%clk 0:00:13.1]} 50. Kf2 {[%clk 0:00:04.1]} 50... Kc4 {[%clk 0:00:13.5]}
51. Rxh6 {[%clk 0:00:02.2]} 51... Kd3 {[%clk 0:00:14.1]} 52. e4 {[%clk
0:00:02.1]} 52... Qc7 {[%clk 0:00:14.7]} 53. Rg6 {[%clk 0:00:01.1]} 53... Qh2+
{[%clk 0:00:14.9]} 54. Kf1 {[%clk 0:00:01.5]} 54... Ke3 {[%clk 0:00:15.6]} 0-1

[Event "Early-Titled-Tuesday-Blitz-February-20-2024"]
[Site "Chess.com"]
[Date "2024.02.20"]
[Round "11"]
[White "yaguigor"]
[Black "dosto07"]
[Result "0-1"]
[WhiteElo "2636"]
[BlackElo "2505"]
[TimeControl "180+1"]
[EndTime "10:09:42 PST"]
[Termination "dosto07 won by resignation"]

1. e4 {[%clk 0:02:56.5]} 1... e5 {[%clk 0:02:58.9]} 2. Nf3 {[%clk 0:02:55.6]}
2... Nc6 {[%clk 0:02:59.4]} 3. Bb5 {[%clk 0:02:49.8]} 3... a6 {[%clk 0:02:57.5]}
4. Ba4 {[%clk 0:02:31.5]} 4... Nf6 {[%clk 0:02:56.3]} 5. O-O {[%clk 0:02:31.4]}
5... Be7 {[%clk 0:02:56.7]} 6. d3 {[%clk 0:02:31.1]} 6... d6 {[%clk 0:02:54.1]}
7. c3 {[%clk 0:02:29.3]} 7... O-O {[%clk 0:02:53.1]} 8. Nbd2 {[%clk 0:02:26.5]}
8... b5 {[%clk 0:02:52.4]} 9. Bc2 {[%clk 0:02:25.6]} 9... Bb7 {[%clk 0:02:49.5]}
10. Re1 {[%clk 0:02:23.9]} 10... Re8 {[%clk 0:02:46.7]} 11. a4 {[%clk
0:02:18.3]} 11... Bf8 {[%clk 0:02:43.9]} 12. Nf1 {[%clk 0:02:15.1]} 12... d5
{[%clk 0:02:36.4]} 13. Qe2 {[%clk 0:02:05.1]} 13... d4 {[%clk 0:02:27.6]} 14.
Ng3 {[%clk 0:02:00.4]} 14... dxc3 {[%clk 0:02:11.3]} 15. bxc3 {[%clk 0:01:55.7]}
15... b4 {[%clk 0:02:11.6]} 16. Bb2 {[%clk 0:01:49.4]} 16... bxc3 {[%clk
0:02:08.4]} 17. Bxc3 {[%clk 0:01:48]} 17... Bb4 {[%clk 0:02:09]} 18. Qd2 {[%clk
0:01:07.3]} 18... a5 {[%clk 0:02:08.1]} 19. Bb3 {[%clk 0:01:05.6]} 19... Bc8
{[%clk 0:02:03.9]} 20. Ng5 {[%clk 0:01:00.9]} 20... Re7 {[%clk 0:01:48.3]} 21.
Bxb4 {[%clk 0:00:44]} 21... axb4 {[%clk 0:01:40.3]} 22. Rac1 {[%clk 0:00:37.2]}
22... Nd4 {[%clk 0:01:26]} 23. Qxb4 {[%clk 0:00:35.8]} 23... Bg4 {[%clk
0:01:25.6]} 24. Bd1 {[%clk 0:00:29.2]} 24... h6 {[%clk 0:01:09.4]} 25. Bxg4
{[%clk 0:00:28.1]} 25... Nxg4 {[%clk 0:01:08.4]} 26. Nh3 {[%clk 0:00:26.7]}
26... c6 {[%clk 0:00:57.2]} 27. Qc4 {[%clk 0:00:25.5]} 27... Rea7 {[%clk
0:00:53.6]} 28. Ra1 {[%clk 0:00:24]} 28... Qd7 {[%clk 0:00:46.4]} 29. f3 {[%clk
0:00:22.7]} 29... Nf6 {[%clk 0:00:45.9]} 30. Nf2 {[%clk 0:00:22.4]} 30... Qe6
{[%clk 0:00:45.6]} 31. Qxe6 {[%clk 0:00:20.6]} 31... fxe6 {[%clk 0:00:45.3]} 32.
Ne2 {[%clk 0:00:19.4]} 32... Rxa4 {[%clk 0:00:37.2]} 33. Rxa4 {[%clk 0:00:18.5]}
33... Rxa4 {[%clk 0:00:37.7]} 34. Nxd4 {[%clk 0:00:18.6]} 34... Rxd4 {[%clk
0:00:38.3]} 35. Rc1 {[%clk 0:00:18.3]} 35... Rd6 {[%clk 0:00:37.7]} 36. g3
{[%clk 0:00:17.9]} 36... Kf8 {[%clk 0:00:37]} 37. f4 {[%clk 0:00:16.9]} 37...
Nd7 {[%clk 0:00:37.1]} 38. Kg2 {[%clk 0:00:16.9]} 38... Ke7 {[%clk 0:00:36.9]}
39. Kf3 {[%clk 0:00:16.9]} 39... c5 {[%clk 0:00:36.7]} 40. Ke3 {[%clk
0:00:16.7]} 40... Ra6 {[%clk 0:00:36]} 41. Ng4 {[%clk 0:00:15.2]} 41... exf4+
{[%clk 0:00:35.6]} 42. gxf4 {[%clk 0:00:14.9]} 42... Ra2 {[%clk 0:00:35.8]} 43.
Rb1 {[%clk 0:00:13.6]} 43... Rg2 {[%clk 0:00:30]} 44. Kf3 {[%clk 0:00:12.6]}
44... Rd2 {[%clk 0:00:30]} 45. Nf2 {[%clk 0:00:12.1]} 45... g5 {[%clk
0:00:25.2]} 46. fxg5 {[%clk 0:00:11.3]} 46... hxg5 {[%clk 0:00:24.3]} 47. Rb7
{[%clk 0:00:12]} 47... Kd6 {[%clk 0:00:24]} 48. h3 {[%clk 0:00:11.6]} 48... Ne5+
{[%clk 0:00:21.9]} 49. Ke3 {[%clk 0:00:12.2]} 49... Rc2 {[%clk 0:00:22.1]} 50.
Rb6+ {[%clk 0:00:12.1]} 50... Nc6 {[%clk 0:00:21.8]} 51. Ng4 {[%clk 0:00:10.5]}
51... Kc7 {[%clk 0:00:20.6]} 52. Rb1 {[%clk 0:00:10]} 52... Nd4 {[%clk
0:00:20.6]} 53. Re1 {[%clk 0:00:10.5]} 53... Rg2 {[%clk 0:00:19.6]} 54. e5
{[%clk 0:00:09.8]} 54... Nc2+ {[%clk 0:00:18.8]} 55. Kf3 {[%clk 0:00:08.4]}
55... Nxe1+ {[%clk 0:00:19.7]} 0-1